[Event "Titled Tuesday Blitz December 20 Late 2022"]
[White "Ibadov, Dashgyn"]
[Black "gshwbedhkhd"]
[WhiteFideId "24107514"]
[WhiteElo "2208"]
[BlackElo "2590"]
[Result "1-0"]
[Round "03"]
[TimeControl "180+1"]
[Date "2022.12.21"]
[WhiteClock "0:00:48"]
[BlackClock "0:00:06"]

1. d4 {[%clk 0:03:00]}  f5 {[%clk 0:02:55]} 2. c4 {[%clk 0:02:58]}  Nf6 {[%clk 0:02:56]} 3. Nc3 {[%clk 0:02:58]}  g6 {[%clk 0:02:56]} 4. Bg5 {[%clk 0:02:52]}  Bg7 {[%clk 0:02:56]} 5. h4 {[%clk 0:02:51]}  h6 {[%clk 0:02:55]} 6. Bd2 {[%clk 0:02:48]}  Nc6 {[%clk 0:02:51]} 7. h5 {[%clk 0:02:43]}  g5 {[%clk 0:02:49]} 8. e3 {[%clk 0:02:40]}  d6 {[%clk 0:02:45]} 9. d5 {[%clk 0:02:35]}  Ne5 {[%clk 0:02:43]} 10. Nf3 {[%clk 0:02:35]}  O-O {[%clk 0:02:38]} 11. Qc2 {[%clk 0:02:31]}  Neg4 {[%clk 0:02:21]} 12. Bd3 {[%clk 0:02:26]}  Nh7 {[%clk 0:01:50]} 13. Nd4 {[%clk 0:02:21]}  Qe8 {[%clk 0:01:34]} 14. f3 {[%clk 0:02:12]}  Ne5 {[%clk 0:01:23]} 15. Bxf5 {[%clk 0:02:09]}  Bxf5 {[%clk 0:01:21]} 16. Nxf5 {[%clk 0:02:09]}  Nxc4 {[%clk 0:01:16]} 17. Nxg7 {[%clk 0:02:09]}  Kxg7 {[%clk 0:01:17]} 18. Ne4 {[%clk 0:02:08]}  Ne5 {[%clk 0:01:10]} 19. Bc3 {[%clk 0:02:07]}  Nf6 {[%clk 0:01:05]} 20. O-O-O {[%clk 0:01:54]}  Ned7 {[%clk 0:00:55]} 21. f4 {[%clk 0:01:39]}  g4 {[%clk 0:00:45]} 22. Rh4 {[%clk 0:01:31]}  Kg8 {[%clk 0:00:40]} 23. Nxf6+ {[%clk 0:01:26]}  Nxf6 {[%clk 0:00:40]} 24. Bxf6 {[%clk 0:01:25]}  Rxf6 {[%clk 0:00:41]} 25. Rxg4+ {[%clk 0:01:25]}  Kh8 {[%clk 0:00:40]} 26. Rg6 {[%clk 0:01:24]}  c6 {[%clk 0:00:29]} 27. Kb1 {[%clk 0:01:09]}  cxd5 {[%clk 0:00:27]} 28. Rxf6 {[%clk 0:01:08]}  exf6 {[%clk 0:00:27]} 29. Qf5 {[%clk 0:01:08]}  Qxe3 {[%clk 0:00:19]} 30. Qxf6+ {[%clk 0:01:07]}  Kh7 {[%clk 0:00:19]} 31. Qg6+ {[%clk 0:01:08]}  Kh8 {[%clk 0:00:19]} 32. Qxh6+ {[%clk 0:01:08]}  Kg8 {[%clk 0:00:19]} 33. Qg6+ {[%clk 0:01:09]}  Kh8 {[%clk 0:00:20]} 34. Qh6+ {[%clk 0:01:00]}  Kg8 {[%clk 0:00:20]} 35. Qxd6 {[%clk 0:00:59]}  Qe4+ {[%clk 0:00:11]} 36. Ka1 {[%clk 0:00:59]}  Rc8 {[%clk 0:00:12]} 37. a3 {[%clk 0:00:56]}  Rc2 {[%clk 0:00:09]} 38. Qxd5+ {[%clk 0:00:50]}  Qxd5 {[%clk 0:00:09]} 39. Rxd5 {[%clk 0:00:51]}  Kh7 {[%clk 0:00:08]} 40. Rd7+ {[%clk 0:00:48]}  Kh6 {[%clk 0:00:08]} 41. Rxb7 {[%clk 0:00:49]}  Kxh5 {[%clk 0:00:08]} 42. Rxa7 {[%clk 0:00:49]}  Rxg2 {[%clk 0:00:06]} 43. Ra4 {[%clk 0:00:47]}  Kg4 {[%clk 0:00:05]} 44. Rb4 {[%clk 0:00:47]}  Re2 {[%clk 0:00:03]} 45. Ka2 {[%clk 0:00:48]}  Kf5 {[%clk 0:00:03]} 46. a4 {[%clk 0:00:48]}  Re7 {[%clk 0:00:02]} 47. Rd4 {[%clk 0:00:46]}  Ra7 {[%clk 0:00:03]} 48. Ka3 {[%clk 0:00:46]}  Rb7 {[%clk 0:00:03]} 49. b4 {[%clk 0:00:46]}  Ke6 {[%clk 0:00:03]} 50. b5 {[%clk 0:00:46]}  Rc7 {[%clk 0:00:02]} 51. Kb4 {[%clk 0:00:46]}  Rc1 {[%clk 0:00:02]} 52. a5 {[%clk 0:00:45]}  Rb1+ {[%clk 0:00:02]} 53. Kc5 {[%clk 0:00:46]}  Ra1 {[%clk 0:00:03]} 54. a6 {[%clk 0:00:46]}  Rc1+ {[%clk 0:00:03]} 55. Kb6 {[%clk 0:00:46]}  Rb1 {[%clk 0:00:03]} 56. a7 {[%clk 0:00:46]}  Ra1 {[%clk 0:00:03]} 57. Rd8 {[%clk 0:00:46]}  Kf5 {[%clk 0:00:03]} 58. a8=Q {[%clk 0:00:46]}  Rxa8 {[%clk 0:00:04]} 59. Rxa8 {[%clk 0:00:46]}  Kxf4 {[%clk 0:00:04]} 60. Re8 {[%clk 0:00:47]}  Kg3 {[%clk 0:00:05]} 61. Kc7 {[%clk 0:00:47]}  Kh3 {[%clk 0:00:06]} 62. b6 {[%clk 0:00:48]} 1-0


[Site "https://www.chess.com"]

[Event "Titled Tuesday Blitz December 20 Late 2022"]
[White "Ivanov, Mike"]
[Black "Fernandez De La Vara, Arnaldo"]
[WhiteFideId "2613158"]
[BlackFideId "3518388"]
[WhiteElo "2237"]
[BlackElo "2387"]
[Result "0-1"]
[Round "03"]
[TimeControl "180+1"]
[Date "2022.12.21"]
[WhiteClock "0:00:03"]
[BlackClock "0:00:13"]

1. e4 {[%clk 0:02:57]}  c5 {[%clk 0:03:00]} 2. Nf3 {[%clk 0:02:57]}  e6 {[%clk 0:03:01]} 3. d4 {[%clk 0:02:54]}  cxd4 {[%clk 0:03:02]} 4. Nxd4 {[%clk 0:02:55]}  a6 {[%clk 0:03:03]} 5. Bd3 {[%clk 0:02:52]}  Qc7 {[%clk 0:03:03]} 6. O-O {[%clk 0:02:50]}  Nf6 {[%clk 0:03:04]} 7. f4 {[%clk 0:02:49]}  d6 {[%clk 0:03:04]} 8. c4 {[%clk 0:02:48]}  Nbd7 {[%clk 0:03:04]} 9. Nc3 {[%clk 0:02:48]}  g6 {[%clk 0:03:05]} 10. Be3 {[%clk 0:02:45]}  Bg7 {[%clk 0:03:05]} 11. Rc1 {[%clk 0:02:42]}  O-O {[%clk 0:03:05]} 12. Kh1 {[%clk 0:02:41]}  Re8 {[%clk 0:03:06]} 13. Qf3 {[%clk 0:02:41]}  b6 {[%clk 0:03:06]} 14. e5 {[%clk 0:02:28]}  dxe5 {[%clk 0:03:06]} 15. fxe5 {[%clk 0:02:12]}  Bb7 {[%clk 0:03:02]} 16. Qg3 {[%clk 0:01:47]}  Qxe5 {[%clk 0:02:42]} 17. Qxe5 {[%clk 0:01:46]}  Nxe5 {[%clk 0:02:43]} 18. Be2 {[%clk 0:01:45]}  Rac8 {[%clk 0:02:31]} 19. b3 {[%clk 0:01:44]}  Ned7 {[%clk 0:02:31]} 20. Na4 {[%clk 0:01:39]}  Ne4 {[%clk 0:02:24]} 21. Bf3 {[%clk 0:01:28]}  Nec5 {[%clk 0:02:13]} 22. Bxb7 {[%clk 0:01:18]}  Nxb7 {[%clk 0:02:12]} 23. Rfd1 {[%clk 0:01:17]}  Nbc5 {[%clk 0:01:57]} 24. Nf3 {[%clk 0:01:09]}  Bf8 {[%clk 0:01:29]} 25. Kg1 {[%clk 0:00:59]}  f6 {[%clk 0:01:02]} 26. Kf2 {[%clk 0:00:56]}  Kf7 {[%clk 0:01:01]} 27. Nc3 {[%clk 0:00:56]}  Red8 {[%clk 0:00:58]} 28. b4 {[%clk 0:00:47]}  Nb7 {[%clk 0:00:56]} 29. Na4 {[%clk 0:00:42]}  Bxb4 {[%clk 0:00:53]} 30. Nxb6 {[%clk 0:00:28]}  Nxb6 {[%clk 0:00:48]} 31. Rxd8 {[%clk 0:00:28]}  Rxd8 {[%clk 0:00:43]} 32. Bxb6 {[%clk 0:00:28]}  Bc5+ {[%clk 0:00:42]} 33. Bxc5 {[%clk 0:00:27]}  Nxc5 {[%clk 0:00:43]} 34. Rc2 {[%clk 0:00:26]}  e5 {[%clk 0:00:32]} 35. Ke3 {[%clk 0:00:26]}  Rd3+ {[%clk 0:00:30]} 36. Ke2 {[%clk 0:00:26]}  Ra3 {[%clk 0:00:30]} 37. Rb2 {[%clk 0:00:26]}  g5 {[%clk 0:00:24]} 38. h3 {[%clk 0:00:25]}  Kg6 {[%clk 0:00:24]} 39. Kf1 {[%clk 0:00:23]}  h5 {[%clk 0:00:21]} 40. Rb6 {[%clk 0:00:15]}  Kf5 {[%clk 0:00:20]} 41. Rb2 {[%clk 0:00:16]}  g4 {[%clk 0:00:20]} 42. hxg4+ {[%clk 0:00:16]}  hxg4 {[%clk 0:00:21]} 43. Nh4+ {[%clk 0:00:15]}  Kg5 {[%clk 0:00:22]} 44. g3 {[%clk 0:00:13]}  Ne4 {[%clk 0:00:22]} 45. Ng2 {[%clk 0:00:14]}  Nxg3+ {[%clk 0:00:22]} 46. Kf2 {[%clk 0:00:14]}  Ne4+ {[%clk 0:00:22]} 47. Kg1 {[%clk 0:00:14]}  f5 {[%clk 0:00:21]} 48. Rc2 {[%clk 0:00:12]}  Rc3 {[%clk 0:00:16]} 49. Rxc3 {[%clk 0:00:11]}  Nxc3 {[%clk 0:00:16]} 50. Kf2 {[%clk 0:00:10]}  f4 {[%clk 0:00:16]} 51. a3 {[%clk 0:00:10]}  e4 {[%clk 0:00:16]} 52. c5 {[%clk 0:00:10]}  e3+ {[%clk 0:00:17]} 53. Ke1 {[%clk 0:00:10]}  Kf5 {[%clk 0:00:12]} 54. c6 {[%clk 0:00:08]}  Nd5 {[%clk 0:00:13]} 55. Nh4+ {[%clk 0:00:07]}  Ke4 {[%clk 0:00:13]} 56. Ng6 {[%clk 0:00:06]}  f3 {[%clk 0:00:13]} 57. Nf8 {[%clk 0:00:03]}  g3 {[%clk 0:00:12]} 58. Ne6 {[%clk 0:00:03]}  g2 {[%clk 0:00:13]} 59. Ng5+ {[%clk 0:00:03]}  Kf4 {[%clk 0:00:13]} 60. Nh3+ {[%clk 0:00:03]}  Kg3 {[%clk 0:00:13]} 61. c7 {[%clk 0:00:03]} 0-1


[Site "https://www.chess.com"]

[Event "Titled Tuesday Blitz December 20 Late 2022"]
[White "Kazakouski, Valery"]
[Black "Zhukov, Maksim"]
[WhiteFideId "13507443"]
[BlackFideId "34181790"]
[WhiteElo "2516"]
[BlackElo "1929"]
[Result "1-0"]
[Round "03"]
[TimeControl "180+1"]
[Date "2022.12.21"]
[WhiteClock "0:00:24"]
[BlackClock "0:00:19"]

1. Nf3 {[%clk 0:02:51]}  Nf6 {[%clk 0:02:59]} 2. c4 {[%clk 0:02:50]}  g6 {[%clk 0:02:59]} 3. g3 {[%clk 0:02:51]}  Bg7 {[%clk 0:03:00]} 4. Bg2 {[%clk 0:02:51]}  O-O {[%clk 0:03:01]} 5. O-O {[%clk 0:02:52]}  d6 {[%clk 0:03:02]} 6. d4 {[%clk 0:02:52]}  Nc6 {[%clk 0:03:03]} 7. Nc3 {[%clk 0:02:52]}  e5 {[%clk 0:03:03]} 8. dxe5 {[%clk 0:02:52]}  Nxe5 {[%clk 0:03:04]} 9. b3 {[%clk 0:02:53]}  Nfd7 {[%clk 0:03:01]} 10. Bb2 {[%clk 0:02:52]}  Nxf3+ {[%clk 0:03:01]} 11. Bxf3 {[%clk 0:02:53]}  Nc5 {[%clk 0:03:01]} 12. Qd2 {[%clk 0:02:51]}  Bh3 {[%clk 0:03:01]} 13. Rfd1 {[%clk 0:02:51]}  a5 {[%clk 0:03:02]} 14. Nd5 {[%clk 0:02:50]}  Be6 {[%clk 0:02:57]} 15. Bxg7 {[%clk 0:02:49]}  Kxg7 {[%clk 0:02:58]} 16. Qc3+ {[%clk 0:02:47]}  f6 {[%clk 0:02:58]} 17. Nf4 {[%clk 0:02:43]}  Bd7 {[%clk 0:02:43]} 18. a3 {[%clk 0:02:41]}  Rb8 {[%clk 0:02:26]} 19. b4 {[%clk 0:02:38]}  axb4 {[%clk 0:02:27]} 20. axb4 {[%clk 0:02:39]}  Ne6 {[%clk 0:02:28]} 21. Nd5 {[%clk 0:02:35]}  Bc6 {[%clk 0:02:27]} 22. h4 {[%clk 0:02:27]}  g5 {[%clk 0:02:19]} 23. Bg4 {[%clk 0:02:24]}  Re8 {[%clk 0:02:12]} 24. b5 {[%clk 0:02:11]}  Bxd5 {[%clk 0:02:11]} 25. cxd5 {[%clk 0:02:10]}  Nc5 {[%clk 0:02:11]} 26. hxg5 {[%clk 0:02:11]}  Re5 {[%clk 0:02:11]} 27. f4 {[%clk 0:02:07]}  Re8 {[%clk 0:01:56]} 28. Kg2 {[%clk 0:02:00]}  Qe7 {[%clk 0:01:22]} 29. Rh1 {[%clk 0:01:56]}  Qe4+ {[%clk 0:01:21]} 30. Bf3 {[%clk 0:01:56]}  Qg6 {[%clk 0:01:15]} 31. gxf6+ {[%clk 0:01:56]}  Kf8 {[%clk 0:01:07]} 32. Rh3 {[%clk 0:01:49]}  Ne4 {[%clk 0:01:05]} 33. Qxc7 {[%clk 0:01:48]}  Nxf6 {[%clk 0:01:00]} 34. Qxd6+ {[%clk 0:01:41]}  Kg8 {[%clk 0:01:00]} 35. Rah1 {[%clk 0:01:37]}  Rbc8 {[%clk 0:00:56]} 36. Rh6 {[%clk 0:01:14]}  Rxe2+ {[%clk 0:00:55]} 37. Bxe2 {[%clk 0:01:14]}  Qe4+ {[%clk 0:00:55]} 38. Bf3 {[%clk 0:00:32]}  Rc2+ {[%clk 0:00:54]} 39. Kh3 {[%clk 0:00:33]}  Qxf3 {[%clk 0:00:26]} 40. Qe6+ {[%clk 0:00:33]}  Kg7 {[%clk 0:00:21]} 41. Qxf6+ {[%clk 0:00:33]}  Kg8 {[%clk 0:00:21]} 42. Qe6+ {[%clk 0:00:24]}  Kg7 {[%clk 0:00:21]} 43. Qe5+ {[%clk 0:00:24]}  Kxh6 {[%clk 0:00:19]} 44. Qg5# {[%clk 0:00:24]} 1-0


[Site "https://www.chess.com"]

[Event "Titled Tuesday Blitz December 20 Late 2022"]
[White "Kirillov, Dmitry"]
[Black "Tarnowska, Aleksandra"]
[WhiteFideId "34180572"]
[BlackFideId "1180967"]
[WhiteElo "2111"]
[BlackElo "1776"]
[Result "0-1"]
[Round "03"]
[TimeControl "180+1"]
[Date "2022.12.21"]
[WhiteClock "0:00:03"]
[BlackClock "0:00:03"]

1. e4 {[%clk 0:02:54]}  c5 {[%clk 0:02:57]} 2. Nc3 {[%clk 0:02:51]}  d6 {[%clk 0:02:54]} 3. f4 {[%clk 0:02:51]}  Nc6 {[%clk 0:02:50]} 4. Nf3 {[%clk 0:02:49]}  g6 {[%clk 0:02:50]} 5. Bc4 {[%clk 0:02:48]}  Bg7 {[%clk 0:02:50]} 6. d3 {[%clk 0:02:48]}  Nf6 {[%clk 0:02:49]} 7. O-O {[%clk 0:02:49]}  O-O {[%clk 0:02:49]} 8. h3 {[%clk 0:02:49]}  e6 {[%clk 0:02:46]} 9. Bb3 {[%clk 0:02:49]}  d5 {[%clk 0:02:43]} 10. e5 {[%clk 0:02:49]}  Nd7 {[%clk 0:02:40]} 11. Ne2 {[%clk 0:02:49]}  b5 {[%clk 0:02:39]} 12. c3 {[%clk 0:02:48]}  Nb6 {[%clk 0:02:35]} 13. Be3 {[%clk 0:02:46]}  c4 {[%clk 0:02:32]} 14. Bc2 {[%clk 0:02:43]}  cxd3 {[%clk 0:02:30]} 15. Bxd3 {[%clk 0:02:44]}  Nc4 {[%clk 0:02:31]} 16. Bc1 {[%clk 0:02:44]}  b4 {[%clk 0:02:24]} 17. b3 {[%clk 0:02:33]}  Nb6 {[%clk 0:02:19]} 18. cxb4 {[%clk 0:02:25]}  Nxb4 {[%clk 0:02:18]} 19. Ba3 {[%clk 0:02:26]}  a5 {[%clk 0:02:11]} 20. Ned4 {[%clk 0:02:25]}  Nd7 {[%clk 0:01:47]} 21. Rf2 {[%clk 0:02:17]}  Nc5 {[%clk 0:01:43]} 22. Bc2 {[%clk 0:01:52]}  Ba6 {[%clk 0:01:31]} 23. Rd2 {[%clk 0:01:38]}  Qb6 {[%clk 0:01:28]} 24. Kh1 {[%clk 0:01:30]}  Rfc8 {[%clk 0:01:22]} 25. g4 {[%clk 0:01:24]}  Nxc2 {[%clk 0:01:21]} 26. Rxc2 {[%clk 0:01:22]}  Ne4 {[%clk 0:01:19]} 27. Rac1 {[%clk 0:01:16]}  Rc3 {[%clk 0:00:57]} 28. Qe1 {[%clk 0:00:42]}  Rxc2 {[%clk 0:00:41]} 29. Rxc2 {[%clk 0:00:43]}  Bd3 {[%clk 0:00:39]} 30. Rc6 {[%clk 0:00:37]}  Qb7 {[%clk 0:00:35]} 31. Qc1 {[%clk 0:00:28]}  h6 {[%clk 0:00:10]} 32. Bd6 {[%clk 0:00:20]}  a4 {[%clk 0:00:08]} 33. Rc7 {[%clk 0:00:09]}  Qa6 {[%clk 0:00:06]} 34. b4 {[%clk 0:00:03]}  Bc4 {[%clk 0:00:05]} 35. Bc5 {[%clk 0:00:02]}  Bxa2 {[%clk 0:00:04]} 36. Bd6 {[%clk 0:00:01]}  Bc4 {[%clk 0:00:04]} 37. Be7 {[%clk 0:00:02]}  a3 {[%clk 0:00:04]} 38. Bf6 {[%clk 0:00:02]}  a2 {[%clk 0:00:04]} 39. Qa1 {[%clk 0:00:02]}  Qa3 {[%clk 0:00:03]} 40. Bxg7 {[%clk 0:00:02]}  Kxg7 {[%clk 0:00:03]} 41. Nxe6+ {[%clk 0:00:02]}  Kg8 {[%clk 0:00:03]} 42. Nd8 {[%clk 0:00:02]}  Qxf3+ {[%clk 0:00:03]} 43. Kh2 {[%clk 0:00:02]}  Qf2+ {[%clk 0:00:03]} 44. Kh1 {[%clk 0:00:03]}  Ng3# {[%clk 0:00:03]} 0-1


[Site "https://www.chess.com"]

[Event "Titled Tuesday Blitz December 20 Late 2022"]
[White "Kohler, Aran"]
[Black "Melkumyan, Hrant"]
[WhiteFideId "1002856"]
[BlackFideId "13302485"]
[WhiteElo "2334"]
[BlackElo "2604"]
[Result "0-1"]
[Round "03"]
[TimeControl "180+1"]
[Date "2022.12.21"]
[WhiteClock "0:00:13"]
[BlackClock "0:01:35"]

1. e4 {[%clk 0:02:59]}  e6 {[%clk 0:02:57]} 2. d4 {[%clk 0:02:58]}  d5 {[%clk 0:02:57]} 3. Nc3 {[%clk 0:02:58]}  Bb4 {[%clk 0:02:56]} 4. Bd2 {[%clk 0:02:57]}  Bxc3 {[%clk 0:02:51]} 5. Bxc3 {[%clk 0:02:57]}  dxe4 {[%clk 0:02:51]} 6. Qg4 {[%clk 0:02:54]}  Nf6 {[%clk 0:02:45]} 7. Qxg7 {[%clk 0:02:52]}  Rg8 {[%clk 0:02:46]} 8. Qh6 {[%clk 0:02:52]}  Nbd7 {[%clk 0:02:39]} 9. O-O-O {[%clk 0:02:44]}  Nb6 {[%clk 0:02:35]} 10. f3 {[%clk 0:02:21]}  Nbd5 {[%clk 0:02:30]} 11. Bd2 {[%clk 0:02:15]}  e3 {[%clk 0:02:26]} 12. Bxe3 {[%clk 0:02:15]}  Rg6 {[%clk 0:02:26]} 13. Qh4 {[%clk 0:02:00]}  Nxe3 {[%clk 0:02:26]} 14. Re1 {[%clk 0:01:59]}  Nxf1 {[%clk 0:02:12]} 15. Rxf1 {[%clk 0:01:58]}  Rxg2 {[%clk 0:02:12]} 16. Nh3 {[%clk 0:01:58]}  Nd7 {[%clk 0:02:07]} 17. Qxh7 {[%clk 0:01:57]}  Qf6 {[%clk 0:02:01]} 18. Rhg1 {[%clk 0:01:55]}  Nf8 {[%clk 0:01:58]} 19. Qe4 {[%clk 0:01:38]}  Qh6+ {[%clk 0:01:54]} 20. Nf4 {[%clk 0:01:32]}  Rxg1 {[%clk 0:01:54]} 21. Rxg1 {[%clk 0:01:31]}  Ng6 {[%clk 0:01:54]} 22. Rxg6 {[%clk 0:01:10]}  fxg6 {[%clk 0:01:53]} 23. Kb1 {[%clk 0:01:03]}  Qxh2 {[%clk 0:01:49]} 24. Qxg6+ {[%clk 0:01:02]}  Kd7 {[%clk 0:01:46]} 25. Qf7+ {[%clk 0:00:58]}  Kc6 {[%clk 0:01:46]} 26. Nd3 {[%clk 0:00:54]}  Qg1+ {[%clk 0:01:44]} 27. Nc1 {[%clk 0:00:54]}  Qxd4 {[%clk 0:01:44]} 28. a4 {[%clk 0:00:44]}  Bd7 {[%clk 0:01:42]} 29. Nd3 {[%clk 0:00:28]}  Rh8 {[%clk 0:01:36]} 30. f4 {[%clk 0:00:12]}  Rh1+ {[%clk 0:01:35]} 31. Ka2 {[%clk 0:00:13]}  Qxa4# {[%clk 0:01:35]} 0-1


[Site "https://www.chess.com"]

[Event "Titled Tuesday Blitz December 20 Late 2022"]
[White "Lacasa Diaz, Jose Antonio"]
[Black "Marin Masis, Jose Esteban"]
[WhiteFideId "2203375"]
[BlackFideId "6508146"]
[WhiteElo "2338"]
[BlackElo "1838"]
[Result "1-0"]
[Round "03"]
[TimeControl "180+1"]
[Date "2022.12.21"]
[WhiteClock "0:01:17"]
[BlackClock "0:00:27"]

1. e4 {[%clk 0:03:00]}  c5 {[%clk 0:02:59]} 2. Nf3 {[%clk 0:02:58]}  Nc6 {[%clk 0:02:59]} 3. Bb5 {[%clk 0:02:56]}  g6 {[%clk 0:02:57]} 4. Bxc6 {[%clk 0:02:53]}  bxc6 {[%clk 0:02:53]} 5. d3 {[%clk 0:02:52]}  d5 {[%clk 0:02:53]} 6. Nbd2 {[%clk 0:02:51]}  Bg7 {[%clk 0:02:53]} 7. Qe2 {[%clk 0:02:50]}  Nf6 {[%clk 0:02:52]} 8. h3 {[%clk 0:02:49]}  O-O {[%clk 0:02:52]} 9. c4 {[%clk 0:02:45]}  a5 {[%clk 0:02:44]} 10. O-O {[%clk 0:02:41]}  Qb6 {[%clk 0:02:39]} 11. e5 {[%clk 0:02:40]}  Nd7 {[%clk 0:02:25]} 12. b3 {[%clk 0:02:34]}  e6 {[%clk 0:02:17]} 13. Bb2 {[%clk 0:02:24]}  a4 {[%clk 0:02:17]} 14. Bc3 {[%clk 0:02:15]}  d4 {[%clk 0:02:05]} 15. Bb2 {[%clk 0:02:14]}  a3 {[%clk 0:02:05]} 16. Bc1 {[%clk 0:02:14]}  Qc7 {[%clk 0:02:05]} 17. Re1 {[%clk 0:02:13]}  Qa5 {[%clk 0:01:52]} 18. Nf1 {[%clk 0:02:06]}  Qc3 {[%clk 0:01:46]} 19. Bd2 {[%clk 0:02:03]}  Qc2 {[%clk 0:01:42]} 20. Rec1 {[%clk 0:02:01]}  Qb2 {[%clk 0:01:40]} 21. Rcb1 {[%clk 0:02:02]}  Qc2 {[%clk 0:01:38]} 22. Ne1 {[%clk 0:02:01]}  Qxb1 {[%clk 0:01:32]} 23. Rxb1 {[%clk 0:01:59]}  Nxe5 {[%clk 0:01:31]} 24. Bf4 {[%clk 0:01:57]}  Nd7 {[%clk 0:01:29]} 25. Nd2 {[%clk 0:01:50]}  e5 {[%clk 0:01:28]} 26. Bg3 {[%clk 0:01:50]}  f5 {[%clk 0:01:27]} 27. f4 {[%clk 0:01:49]}  Re8 {[%clk 0:01:23]} 28. Nef3 {[%clk 0:01:46]}  e4 {[%clk 0:01:04]} 29. dxe4 {[%clk 0:01:45]}  Nf6 {[%clk 0:00:57]} 30. e5 {[%clk 0:01:44]}  Nh5 {[%clk 0:00:49]} 31. Bh2 {[%clk 0:01:44]}  Bd7 {[%clk 0:00:44]} 32. Ne1 {[%clk 0:01:38]}  Bh6 {[%clk 0:00:44]} 33. Nd3 {[%clk 0:01:37]}  Ra5 {[%clk 0:00:38]} 34. Rf1 {[%clk 0:01:34]}  Ng7 {[%clk 0:00:34]} 35. Nf3 {[%clk 0:01:29]}  Ne6 {[%clk 0:00:33]} 36. h4 {[%clk 0:01:27]}  Bf8 {[%clk 0:00:26]} 37. Ng5 {[%clk 0:01:25]}  Nd8 {[%clk 0:00:26]} 38. h5 {[%clk 0:01:22]}  h6 {[%clk 0:00:26]} 39. Nf3 {[%clk 0:01:22]}  Ne6 {[%clk 0:00:25]} 40. hxg6 {[%clk 0:01:21]}  Kg7 {[%clk 0:00:26]} 41. Nh4 {[%clk 0:01:20]}  Nc7 {[%clk 0:00:26]} 42. Qh5 {[%clk 0:01:19]}  Be7 {[%clk 0:00:25]} 43. Nxf5+ {[%clk 0:01:17]}  Bxf5 {[%clk 0:00:26]} 44. Qxf5 {[%clk 0:01:17]}  Rf8 {[%clk 0:00:27]} 45. Qd7 {[%clk 0:01:17]} 1-0


[Site "https://www.chess.com"]

[Event "Titled Tuesday Blitz December 20 Late 2022"]
[White "Manukyan, Sargis A."]
[Black "Bolanos, Fernando"]
[WhiteFideId "13303970"]
[BlackFideId "3304094"]
[WhiteElo "2187"]
[BlackElo "2166"]
[Result "0-1"]
[Round "03"]
[TimeControl "180+1"]
[Date "2022.12.21"]
[WhiteClock "0:00:08"]
[BlackClock "0:00:07"]

1. Nf3 {[%clk 0:03:00]}  d5 {[%clk 0:02:59]} 2. c4 {[%clk 0:03:01]}  c6 {[%clk 0:02:58]} 3. Nc3 {[%clk 0:02:58]}  Nf6 {[%clk 0:02:58]} 4. e3 {[%clk 0:02:58]}  Bf5 {[%clk 0:02:48]} 5. Qb3 {[%clk 0:02:57]}  Qb6 {[%clk 0:02:46]} 6. Qxb6 {[%clk 0:02:57]}  axb6 {[%clk 0:02:47]} 7. cxd5 {[%clk 0:02:58]}  Nxd5 {[%clk 0:02:46]} 8. Nxd5 {[%clk 0:02:57]}  cxd5 {[%clk 0:02:47]} 9. Ne5 {[%clk 0:02:57]}  Nc6 {[%clk 0:02:47]} 10. Bb5 {[%clk 0:02:56]}  Rc8 {[%clk 0:02:47]} 11. d4 {[%clk 0:02:52]}  e6 {[%clk 0:02:43]} 12. g4 {[%clk 0:02:50]}  Bc2 {[%clk 0:02:37]} 13. Bd2 {[%clk 0:02:49]}  Bd6 {[%clk 0:02:32]} 14. Rc1 {[%clk 0:02:39]}  Bxe5 {[%clk 0:02:29]} 15. dxe5 {[%clk 0:02:37]}  Be4 {[%clk 0:02:25]} 16. O-O {[%clk 0:02:36]}  Bf3 {[%clk 0:02:23]} 17. g5 {[%clk 0:02:32]}  h6 {[%clk 0:02:23]} 18. g6 {[%clk 0:01:58]}  fxg6 {[%clk 0:02:22]} 19. Rc3 {[%clk 0:01:52]}  O-O {[%clk 0:02:08]} 20. Rfc1 {[%clk 0:01:47]}  Ra8 {[%clk 0:01:23]} 21. Bxc6 {[%clk 0:01:40]}  d4 {[%clk 0:01:12]} 22. exd4 {[%clk 0:01:22]}  bxc6 {[%clk 0:01:03]} 23. a3 {[%clk 0:01:19]}  g5 {[%clk 0:01:01]} 24. Rxf3 {[%clk 0:01:14]}  Rxf3 {[%clk 0:01:00]} 25. Rxc6 {[%clk 0:01:15]}  Rd8 {[%clk 0:00:47]} 26. Be3 {[%clk 0:01:09]}  Kf7 {[%clk 0:00:38]} 27. Rxb6 {[%clk 0:01:06]}  Rc8 {[%clk 0:00:37]} 28. Kg2 {[%clk 0:01:03]}  g4 {[%clk 0:00:36]} 29. Rb7+ {[%clk 0:00:57]}  Kg6 {[%clk 0:00:36]} 30. Re7 {[%clk 0:00:56]}  Kf5 {[%clk 0:00:34]} 31. Rxg7 {[%clk 0:00:52]}  Rc2 {[%clk 0:00:34]} 32. Kf1 {[%clk 0:00:46]}  Rxb2 {[%clk 0:00:28]} 33. Rh7 {[%clk 0:00:26]}  Rb1+ {[%clk 0:00:09]} 34. Ke2 {[%clk 0:00:21]}  Rh3 {[%clk 0:00:07]} 35. Rf7+ {[%clk 0:00:19]}  Kg6 {[%clk 0:00:05]} 36. Rf6+ {[%clk 0:00:18]}  Kg7 {[%clk 0:00:04]} 37. Rxe6 {[%clk 0:00:14]}  Rxh2 {[%clk 0:00:03]} 38. d5 {[%clk 0:00:14]}  g3 {[%clk 0:00:03]} 39. d6 {[%clk 0:00:07]}  gxf2 {[%clk 0:00:01]} 40. Bxf2 {[%clk 0:00:06]}  Rb2+ {[%clk 0:00:02]} 41. Ke3 {[%clk 0:00:06]}  Rhxf2 {[%clk 0:00:03]} 42. Re7+ {[%clk 0:00:06]}  Kg6 {[%clk 0:00:03]} 43. Ke4 {[%clk 0:00:07]}  Rfd2 {[%clk 0:00:04]} 44. Re6+ {[%clk 0:00:06]}  Kg5 {[%clk 0:00:04]} 45. Re7 {[%clk 0:00:06]}  h5 {[%clk 0:00:04]} 46. Rg7+ {[%clk 0:00:05]}  Kh6 {[%clk 0:00:04]} 47. Rg8 {[%clk 0:00:05]}  Kh7 {[%clk 0:00:05]} 48. Rg3 {[%clk 0:00:05]}  h4 {[%clk 0:00:05]} 49. Rh3 {[%clk 0:00:05]}  Rh2 {[%clk 0:00:05]} 50. Rf3 {[%clk 0:00:05]}  Rbe2+ {[%clk 0:00:04]} 51. Kf5 {[%clk 0:00:05]}  Rhf2 {[%clk 0:00:03]} 52. Rxf2 {[%clk 0:00:05]}  Rxf2+ {[%clk 0:00:04]} 53. Ke6 {[%clk 0:00:06]}  h3 {[%clk 0:00:03]} 54. d7 {[%clk 0:00:07]}  Rd2 {[%clk 0:00:04]} 55. Ke7 {[%clk 0:00:07]}  h2 {[%clk 0:00:05]} 56. e6 {[%clk 0:00:07]}  h1=Q {[%clk 0:00:05]} 57. d8=Q {[%clk 0:00:08]}  Rxd8 {[%clk 0:00:05]} 58. Kxd8 {[%clk 0:00:09]}  Qd5+ {[%clk 0:00:06]} 59. Ke7 {[%clk 0:00:09]}  Kg6 {[%clk 0:00:06]} 60. a4 {[%clk 0:00:08]}  Kf5 {[%clk 0:00:07]} 61. a5 {[%clk 0:00:06]}  Qxe6+ {[%clk 0:00:07]} 62. Kd8 {[%clk 0:00:06]}  Qa6 {[%clk 0:00:06]} 63. Kc7 {[%clk 0:00:06]}  Qxa5+ {[%clk 0:00:06]} 64. Kb8 {[%clk 0:00:07]}  Qc5 {[%clk 0:00:05]} 65. Kb7 {[%clk 0:00:08]}  Ke6 {[%clk 0:00:05]} 66. Ka6 {[%clk 0:00:08]}  Qb4 {[%clk 0:00:05]} 67. Ka7 {[%clk 0:00:07]}  Kd7 {[%clk 0:00:06]} 68. Ka8 {[%clk 0:00:08]}  Kc7 {[%clk 0:00:06]} 69. Ka7 {[%clk 0:00:08]}  Qa4# {[%clk 0:00:07]} 0-1


[Site "https://www.chess.com"]